bitfinex/quotes_ETHUSD_20251028
["timestamp","ask_amount","ask_price","bid_price","bid_amount"]
[1761668654798,9.82683604,4097.2,4097.1,0.00200001]
[1761668655009,12.00983604,4097.2,4097.1,0.00200001]
[1761668655550,5.17885027,4097.2,4097.1,0.00200001]
[1761668655736,6.1780912,4097.2,4097.1,0.59810001]
[1761668656045,6.1780912,4097.2,4097.1,0.00200001]
[1761668656949,9.2009912,4097.2,4097.1,0.00200001]
[1761668657155,6.6339912,4097.2,4097.1,0.00200001]
[1761668657322,8.25031735,4097.2,4097.1,0.00200001]
[1761668658053,2.44081034,4097.0,4096.9,1e-08]
[1761668658213,8.64399611,4097.0,4096.9,1e-08]
[1761668658411,3.99601034,4097.0,4096.9,1e-08]
[1761668658640,3.99601034,4097.0,4096.9,0.43070001]
[1761668658839,6.17901034,4097.0,4096.9,0.43070001]
[1761668659037,3.99601034,4097.0,4096.9,0.43070001]
[1761668659254,6.17901034,4097.0,4096.9,0.43070001]
[1761668660620,4.62381034,4097.0,4096.9,0.43070001]
[1761668661042,2.44081034,4097.0,4096.9,0.43070001]
[1761668661259,4.62381034,4097.0,4096.9,0.43070001]
[1761668661456,4.62381034,4097.0,4096.9,1e-08]
[1761668661622,4.62381034,4097.0,4096.9,0.43070001]
[1761668663257,4.62381034,4097.0,4096.9,1e-08]
[1761668669350,5.34234049,4097.0,4096.9,1e-08]
[1761668670282,4.62381034,4097.0,4096.9,1e-08]
[1761668670663,4.62301034,4097.0,4096.9,1e-08]
[1761668671592,4.62401034,4097.0,4096.9,1e-08]
[1761668672389,4.62401034,4097.0,4096.9,0.43070001]
[1761668672893,0.001,4097.0,4096.9,0.43070001]
[1761668673108,0.0002,4097.5,4096.9,8.44822236]
[1761668673404,0.1216,4097.3,4097.0,1.06312224]
[1761668673711,0.1216,4097.3,4097.2,2.4406912]
[1761668674120,0.1216,4097.3,4097.2,2.8713912]
[1761668674580,0.1216,4097.3,4097.2,0.4307]
[1761668675710,0.1216,4097.3,4097.2,2.8713912]
[1761668676022,0.1216,4097.3,4097.2,4.08303092]
[1761668676380,0.0002,4097.5,4097.4,2.44057207]
[1761668676905,0.0002,4097.5,4097.4,2.87617207]
[1761668678608,0.0002,4097.5,4097.4,2.90057779]
[1761668678915,0.0002,4097.5,4097.4,4.83687607]
[1761668679098,0.0002,4097.5,4097.4,5.90284197]
[1761668679306,0.0002,4097.5,4097.4,6.02444197]
[1761668680313,0.0002,4097.5,4097.4,8.20544197]
[1761668685434,0.001,4097.7,4097.6,2.84595694]
[1761668685744,0.001,4099.2,4097.6,2.84595694]
[1761668685745,0.001,4099.2,4098.3,4.40074011]
[1761668685968,0.001,4099.2,4098.4,1.960704]
[1761668686237,0.001,4099.2,4098.6,4.40056151]
[1761668686435,0.001,4099.2,4098.5,2.89991621]
[1761668686436,0.001,4099.2,4099.1,8.42171793]
[1761668686604,0.0102,4100.4,4099.2,0.405504]
[1761668686804,0.0102,4100.4,4099.5,9.57117589]
[1761668687005,0.0102,4100.4,4099.5,11.00632832]
[1761668687248,0.0102,4100.4,4099.5,11.44192832]
[1761668687457,0.0102,4100.4,4099.5,11.53948965]
[1761668687959,0.0102,4100.4,4099.5,20.14684181]
[1761668689019,0.0102,4100.4,4099.5,8.45077829]
[1761668689236,0.0102,4100.4,4099.5,3.42595243]
[1761668689455,0.0102,4100.4,4099.5,6.61012186]
[1761668691157,2.44903614,4100.4,4099.5,6.60912186]
[1761668691481,2.44903614,4100.4,4099.5,4.43012186]
[1761668691753,2.44903614,4100.4,4099.5,6.60912186]
[1761668692281,0.0102,4100.4,4099.5,6.60912186]
[1761668694154,0.0102,4100.4,4099.5,7.01462586]
[1761668694456,0.0102,4100.4,4099.5,7.9600324]
[1761668694912,0.0002,4099.6,4099.5,7.9600324]
[1761668695307,0.0002,4099.6,4099.5,22.14403859]
[1761668695635,0.0002,4099.6,4099.5,22.26563859]
[1761668696220,0.0002,4099.6,4099.5,22.36319968]
[1761668696566,0.0002,4099.6,4099.5,20.18419968]
[1761668696777,0.0002,4099.6,4099.5,8.0816324]
[1761668696979,0.0002,4099.6,4099.5,7.6761284]
[1761668697770,0.0002,4099.6,4099.5,7.6460324]
[1761668697938,0.0002,4099.6,4099.5,8.0816324]
[1761668698671,0.0002,4099.6,4099.5,5.4670324]
[1761668698874,0.0002,4099.6,4099.5,8.0816324]
[1761668700595,0.0002,4099.6,4099.5,7.6761284]
[1761668700745,0.0002,4099.6,4099.5,8.0816324]
[1761668701137,0.0002,4099.6,4098.3,15.02361572]
[1761668701361,0.1218,4099.6,4098.9,2.43967893]
[1761668701578,0.1218,4099.6,4099.1,1.5552]
[1761668701777,0.0002,4099.6,4099.5,2.43932186]
[1761668702076,0.0002,4099.6,4099.5,4.61832186]
[1761668702252,0.0002,4099.6,4099.5,5.80325383]
[1761668703678,0.0002,4099.6,4099.5,4.61832186]
[1761668703987,0.0002,4099.6,4099.5,2.179]
[1761668704197,0.0002,4099.6,4099.5,4.61832186]
[1761668704479,0.0002,4099.6,4099.5,2.43932186]
[1761668704684,0.0002,4099.6,4099.5,4.61832186]
[1761668704879,0.0002,4099.6,4099.5,2.179]
[1761668705084,0.0002,4099.6,4099.5,4.61832186]
[1761668705594,0.0002,4099.6,4099.5,2.179]
[1761668705958,0.0002,4099.6,4098.7,4.245504]
[1761668706158,0.4582,4099.6,4098.8,3.7342]
[1761668706386,0.0002,4099.6,4098.9,3.99487893]
[1761668706597,0.0002,4099.6,4099.5,2.43932186]
[1761668706897,0.0002,4099.6,4099.5,4.61832186]
[1761668707186,0.0002,4099.6,4099.5,2.179]
[1761668707353,0.0002,4099.6,4099.5,4.61832186]
[1761668707548,0.0002,4099.6,4099.5,2.179]
[1761668709604,0.0002,4099.6,4099.5,4.61832186]
[1761668712017,0.0002,4099.6,4099.5,7.61306638]
[1761668712180,0.0002,4099.6,4099.5,7.58867317]
[1761668712380,0.0002,4099.6,4099.5,7.71027317]
[1761668712686,0.05,4099.9,4099.8,2.84464737]
[1761668712889,0.05,4099.9,4099.8,12.70334957]
[1761668713094,0.05,4099.9,4099.8,13.5429591]
[1761668714802,0.001,4100.1,4100.0,4.39972839]
[1761668715183,0.001,4100.1,4100.0,4.83722839]
[1761668717453,0.001,4100.5,4100.3,9.96595213]
[1761668717656,0.001,4100.5,4100.3,12.14395213]
[1761668717810,0.001,4100.5,4100.3,14.34231032]
[1761668718009,0.001,4100.5,4100.3,14.46391032]
[1761668719649,0.0094,4100.4,4100.3,14.46391032]
[1761668721308,0.001,4101.3,4100.7,2.43860804]
[1761668721509,0.001,4101.3,4100.9,0.405504]
[1761668721708,0.001,4101.3,4101.2,11.87307181]
[1761668721907,0.001,4101.3,4101.2,14.17267181]
[1761668722107,0.001,4101.3,4101.2,14.62827181]
[1761668722309,0.001,4101.3,4101.2,9.99544127]
[1761668722922,0.001,4101.3,4101.2,9.53984127]
[1761668723126,0.001,4101.3,4101.2,10.3794508]
[1761668724439,0.001,4101.3,4101.2,10.8350508]
[1761668726052,0.001,4101.3,4101.2,11.2405548]
[1761668726756,0.001,4101.3,4101.2,12.7957548]
[1761668727261,0.001,4101.3,4101.2,4.95472026]
[1761668727560,0.001,4101.3,4101.2,8.36503054]
[1761668727859,0.001,4101.3,4101.2,10.80334127]
[1761668728063,0.001,4101.3,4101.2,16.29727581]
[1761668728729,0.001,4101.3,4101.2,11.66444527]
[1761668728975,0.001,4101.3,4101.2,9.48744527]
[1761668729143,0.001,4101.3,4101.2,12.40143187]
[1761668733129,0.001,4101.3,4101.2,9.81892787]
[1761668733358,0.001,4101.3,4101.2,10.80334127]
[1761668734065,0.001,4101.3,4101.2,8.62634127]
[1761668734427,0.001,4101.3,4101.2,10.80334127]
[1761668734774,0.4576,4101.3,4101.2,3.7322]
[1761668735334,0.4576,4101.3,4101.0,4.63283054]
[1761668735668,0.4576,4101.3,4101.2,2.177]
[1761668736465,0.001,4101.3,4101.2,4.61531073]
[1761668736675,0.001,4101.3,4101.2,6.23326084]
[1761668736965,0.001,4101.3,4101.2,8.19396484]
[1761668737566,0.001,4101.3,4101.2,8.31556484]
[1761668738767,0.001,4101.3,4101.2,12.94839538]
[1761668740551,0.001,4101.8,4101.5,2.43808879]
[1761668740751,0.001,4102.2,4102.0,2.63323855]
[1761668740986,0.001,4102.2,4102.1,6.74697977]
[1761668741182,0.001,4102.2,4102.1,7.19627977]
[1761668741886,0.001,4102.2,4102.1,6.74697977]
[1761668742086,0.001,4102.2,4102.1,5.01927977]
[1761668742250,0.001,4102.2,4102.1,8.47252778]
[1761668742449,0.001,4102.2,4102.1,5.84622778]
[1761668742686,0.001,4102.2,4102.1,8.47252778]
[1761668742982,0.001,4102.2,4102.1,8.02322778]
[1761668743890,0.0002,4102.2,4102.1,17.58140027]
[1761668744182,0.4452,4102.2,4102.1,2.177]
[1761668746500,0.4452,4102.2,4102.1,4.61477577]
[1761668746501,0.0002,4102.2,4102.1,4.61477577]
[1761668746710,0.4452,4102.2,4102.1,4.61477577]
[1761668747273,0.4452,4102.2,4102.1,2.177]
[1761668748600,0.4452,4102.2,4102.0,0.67253455]
[1761668748799,0.4452,4102.2,4102.1,2.176]
[1761668749001,0.4452,4102.2,4102.0,0.67253455]
[1761668749300,0.4452,4102.2,4102.1,2.176]
[1761668754131,0.4452,4102.2,4102.0,0.67253455]
[1761668754329,0.4452,4102.2,4102.1,2.176]
[1761668755331,0.0002,4102.2,4102.1,2.176]
[1761668755507,0.0002,4102.2,4102.1,4.61377577]
[1761668756503,0.0002,4102.2,4102.1,5.5576954]
[1761668757935,0.0002,4102.2,4102.1,7.1128954]
[1761668758925,0.0002,4102.2,4102.1,6.9413954]
[1761668759835,0.0002,4102.2,4102.1,6.9433954]
[1761668761800,0.0002,4102.2,4102.1,6.17097577]
[1761668762144,0.0002,4102.2,4102.1,2.178]
[1761668762145,0.4452,4102.2,4102.1,2.178]
[1761668762324,0.4452,4102.2,4102.1,4.61577577]
[1761668762525,0.0002,4102.2,4102.1,4.61577577]
[1761668763034,0.0002,4102.2,4102.1,6.17097577]
[1761668763238,0.0002,4102.2,4102.1,7.14404461]
[1761668763807,0.0002,4102.2,4102.1,17.43137347]
[1761668764259,0.0002,4102.2,4102.1,12.92246104]
[1761668764436,0.001,4102.7,4102.2,1.5552]
[1761668764625,0.001,4102.7,4102.6,13.65920753]
[1761668764941,0.001,4102.7,4102.6,17.72200373]
[1761668765241,0.001,4102.7,4102.6,18.17340373]
[1761668765733,0.001,4102.7,4102.6,8.91237887]
[1761668768433,0.0002,4102.7,4102.6,8.50687487]
[1761668768948,0.0002,4102.7,4102.6,8.91237887]
[1761668769540,0.0002,4102.7,4102.6,8.91497887]
[1761668769858,0.0002,4102.7,4102.6,8.46097887]
[1761668770559,0.0002,4102.7,4102.6,8.91497887]
[1761668771154,0.0002,4102.7,4102.6,8.79337887]
[1761668771356,0.05,4102.9,4102.8,2.43735985]
[1761668771558,0.05,4102.9,4102.8,5.00052667]
[1761668771861,0.001,4103.1,4103.0,2.43724104]
[1761668772062,0.01,4104.4,4104.2,2.43647577]
[1761668772359,0.01,4104.4,4104.2,0.1216]
[1761668772533,0.4528,4104.4,4104.3,4.61146906]
[1761668772858,0.01,4104.4,4104.3,4.61146906]
[1761668773025,0.01,4104.4,4104.3,6.28826906]
[1761668774262,0.01,4104.4,4104.3,7.1756746]
[1761668775554,0.01,4104.4,4104.3,1.6768]
[1761668775877,0.4528,4104.4,4104.0,1.5552]
[1761668776044,0.4528,4104.4,4104.0,3.99183882]
[1761668776243,0.4528,4104.4,4104.1,2.175]
[1761668776983,2.88923564,4104.4,4103.3,14.74686449]
[1761668777156,0.1216,4104.2,4103.8,2.43675071]
[1761668777478,0.1216,4104.2,4103.9,2.175]
[1761668777774,0.4467,4104.1,4103.9,2.175]
[1761668777980,0.2224,4104.0,4103.9,2.175]
[1761668778388,0.6669,4104.0,4103.9,2.175]
[1761668778894,0.6669,4104.0,4103.5,0.1216]
[1761668779055,0.4445,4103.9,4103.6,4.61188356]
[1761668779251,0.4445,4103.9,4103.6,2.175]
[1761668779490,0.4445,4103.9,4103.7,2.4367842]
[1761668779865,0.4445,4103.9,4103.6,4.61188171]
[1761668780279,0.4445,4103.9,4103.5,0.1216]
[1761668780594,0.4445,4103.9,4103.6,2.175]
[1761668781296,0.2224,4104.0,4103.6,2.175]
[1761668781464,0.4445,4103.9,4103.6,2.175]
[1761668781996,0.4445,4103.9,4103.6,4.61187798]
[1761668782560,0.4445,4103.9,4103.6,2.175]
[1761668782860,0.4445,4103.9,4103.7,2.175]
[1761668783473,0.4445,4103.9,4103.8,2.175]
[1761668784789,0.5661,4103.9,4103.8,2.175]
[1761668785915,3.32531339,4103.9,4103.8,2.175]
[1761668786113,0.88860685,4103.9,4103.8,2.175]
[1761668786314,0.88860685,4103.9,4103.2,0.1216]
[1761668786500,0.4445,4103.8,4103.3,2.175]
[1761668787181,0.4445,4103.8,4103.3,4.6120597]
[1761668787705,2.43684456,4103.7,4103.4,2.175]
[1761668787902,2.43684456,4103.7,4102.9,1.5552]
[1761668787903,2.55844456,4103.7,4103.5,2.175]
[1761668788109,0.4445,4103.6,4103.5,2.175]
[1761668789417,0.4445,4103.6,4103.0,0.1216]
[1761668789418,0.74479313,4103.6,4103.0,0.1216]
[1761668789722,0.4445,4103.6,4103.1,4.61218164]
[1761668789906,0.4445,4103.5,4103.1,4.61218164]
[1761668790385,0.4445,4103.5,4103.1,2.175]
[1761668791106,0.4445,4103.5,4103.3,2.43702222]
[1761668791722,0.4445,4103.5,4103.2,2.43711439]
[1761668792262,0.4445,4103.5,4103.3,2.43706208]
[1761668792735,0.4437,4103.5,4103.4,2.43700346]
[1761668792911,0.4437,4103.5,4103.4,4.61200346]
[1761668794144,0.4437,4103.5,4103.4,2.175]
[1761668796347,0.4437,4103.5,4103.4,4.61200346]
[1761668796552,0.4437,4103.5,4103.4,2.175]
[1761668796753,0.1216,4103.7,4103.4,2.175]
[1761668797042,0.1216,4103.8,4103.4,2.175]
[1761668797246,0.1216,4103.8,4103.7,2.4368253]
[1761668797441,0.1216,4103.8,4103.7,4.6118253]
[1761668797846,0.001,4103.9,4103.8,2.43676592]
[1761668799114,0.001,4103.9,4103.8,3.15379001]
[1761668799318,0.001,4103.9,4103.8,3.27539001]
[1761668799545,0.001,4103.9,4103.8,3.70369001]
[1761668801016,0.001,4103.9,4103.8,5.68876166]
[1761668801211,0.001,4103.9,4103.8,5.54279401]
[1761668801530,0.001,4103.9,4103.8,5.66439401]
[1761668805250,0.001,4103.9,4103.8,7.83839401]
[1761668805449,0.01,4105.4,4104.7,2.84173563]
[1761668805666,0.01,4105.4,4104.7,21.27557672]
[1761668805873,0.01,4105.4,4104.7,21.44500867]
[1761668807165,0.01,4105.4,4105.3,2.43587557]
[1761668807365,0.01,4105.4,4105.3,20.73217905]
[1761668807557,0.01,4105.4,4105.3,21.16047905]
[1761668807755,0.01,4106.4,4105.4,4.39652024]
[1761668807957,0.01,4106.4,4105.8,7.50726518]
[1761668808154,0.01,4106.4,4105.8,12.11684411]
[1761668808468,0.01,4106.4,4106.3,2.43528237]
[1761668808661,0.01,4106.4,4106.3,10.15584355]
[1761668808864,0.01,4106.4,4106.3,11.27837164]
[1761668809070,0.01,4106.4,4106.3,12.83357164]
[1761668809407,0.01,4106.4,4106.3,9.99278527]
[1761668809575,0.01,4106.4,4106.3,1.5552]
[1761668809733,0.4741,4106.4,4105.8,0.405504]
[1761668809939,0.4741,4106.4,4106.0,2.43545401]
[1761668810260,0.4741,4106.4,4106.1,2.174]
[1761668810643,0.4741,4106.4,4106.0,1.5552]
[1761668810850,0.4741,4106.4,4106.1,2.174]
[1761668811048,0.4741,4106.4,4105.3,2.43582524]
[1761668811238,0.4741,4106.4,4105.5,1.5552]
[1761668811433,0.4741,4106.4,4105.5,3.99095139]
[1761668811665,0.4741,4106.4,4105.7,2.43557968]
[1761668811872,2.9093721,4106.4,4105.8,2.173]
[1761668812076,0.4741,4106.4,4105.7,1.5552]
[1761668812238,0.199,4105.8,4105.3,1.67506916]
[1761668812564,0.199,4105.8,4105.4,3.75496356]
[1761668812767,0.1923,4105.9,4105.4,2.173]
[1761668812974,0.468,4105.8,4105.3,0.405504]
[1761668813177,0.468,4105.8,4105.0,1.960704]
[1761668813478,0.1923,4105.9,4105.6,2.43568428]
[1761668813683,0.468,4105.8,4105.7,2.173]
[1761668813981,0.468,4105.8,4105.3,0.405504]
[1761668814186,0.468,4105.8,4105.6,2.43568481]
[1761668814349,0.468,4105.8,4105.7,2.173]
[1761668814554,0.468,4105.8,4105.5,2.43574576]
[1761668814883,0.468,4105.8,4105.6,2.173]
[1761668815051,0.468,4105.8,4104.5,2.45883142]
[1761668815255,0.468,4105.8,4105.1,2.43598323]
[1761668815452,0.468,4105.8,4105.2,2.2946]
[1761668815651,0.468,4105.8,4105.2,0.1216]
[1761668816051,0.468,4105.8,4105.3,2.19735875]
[1761668816360,0.468,4105.8,4104.5,0.0225011]
[1761668816361,2.43564512,4105.7,4105.4,2.173]
[1761668816681,2.43570249,4105.6,4105.4,2.173]
[1761668816905,2.90450249,4105.6,4105.4,2.173]
[1761668817102,0.4688,4105.5,4105.4,2.173]
[1761668817464,0.468,4105.5,4105.4,2.173]
[1761668817654,0.1216,4105.8,4105.5,2.43575691]
[1761668818487,0.1216,4105.8,4105.6,2.43568351]
[1761668818879,0.1216,4105.8,4105.5,2.43574279]
[1761668819188,0.1216,4105.8,4105.6,2.43569719]
[1761668819572,0.1923,4105.9,4105.7,2.43563825]
[1761668819774,0.6603,4105.9,4105.8,2.173]
[1761668820591,0.1216,4106.3,4105.8,2.173]
[1761668820799,0.011,4106.4,4106.2,2.43534167]
[1761668820988,0.011,4106.4,4106.3,2.173]
[1761668821302,0.011,4106.4,4106.3,4.60828237]
[1761668822000,0.011,4106.4,4106.3,6.88000936]
[1761668822715,0.011,4106.4,4106.3,7.71381336]
[1761668823019,0.011,4106.4,4106.3,21.85837975]
[1761668823577,1e-08,4106.4,4106.3,21.85837975]
[1761668824074,0.0092,4107.4,4106.9,1.960704]
[1761668824431,0.6831,4108.8,4108.3,2.43409682]
[1761668824569,0.1923,4109.0,4108.3,4.60709682]
[1761668825184,0.1923,4109.0,4108.3,2.43409682]
[1761668825502,0.65,4109.0,4108.3,4.60709682]
[1761668826285,0.01,4109.4,4108.3,20.71236721]
[1761668826485,0.01,4109.4,4108.5,0.405504]
[1761668826687,0.01,4109.4,4108.8,4.39450462]
[1761668827105,0.01,4109.4,4108.8,4.84800462]
[1761668827310,0.01,4109.4,4108.8,4.39450462]
[1761668827507,0.01,4109.4,4108.8,6.56650462]
[1761668827686,0.4551,4109.3,4108.8,4.62723645]
[1761668828008,0.4551,4109.3,4108.8,6.16100062]
[1761668828238,0.4551,4109.3,4108.8,3.7272]
[1761668828440,0.4551,4109.3,4108.8,6.16100062]
[1761668828809,0.01,4109.4,4108.8,6.56650462]
[1761668829010,0.01,4109.4,4108.8,7.02000462]
[1761668829212,0.01,4109.4,4108.8,7.96539658]
[1761668829411,0.01,4109.4,4109.0,0.405504]
[1761668829730,0.01,4109.4,4109.3,18.70987487]
[1761668831342,0.01,4109.4,4109.3,19.17057487]
[1761668831546,0.01,4109.4,4109.3,21.12634178]
[1761668831967,0.01,4109.4,4109.3,21.24794178]
[1761668832642,0.01,4109.4,4109.3,20.66564178]
[1761668833239,0.011,4109.4,4109.3,21.12634178]
[1761668835348,0.01,4110.4,4110.3,2.43291243]
[1761668835551,0.01,4110.4,4110.3,4.60491243]
[1761668835770,0.01,4110.4,4110.3,7.02951454]
[1761668835957,0.01,4110.4,4110.3,7.46588542]
[1761668836262,0.2868,4111.9,4111.3,4.39302467]
[1761668836462,0.4524,4111.4,4110.5,14.14456639]
[1761668836765,0.4524,4111.4,4110.9,1.5552]
[1761668836977,0.4524,4111.4,4111.0,2.173]
[1761668837132,0.2352,4110.9,4109.5,1.5552]
[1761668837332,0.2352,4110.9,4110.1,3.9882286]
[1761668837532,0.2352,4110.9,4110.7,2.43262302]
[1761668837836,0.4661,4111.4,4110.8,2.174]
[1761668838054,0.4661,4111.4,4110.3,1.5552]
[1761668838055,0.4661,4111.4,4110.9,2.174]
[1761668838230,0.4661,4111.4,4111.0,2.174]
[1761668838435,0.4661,4111.4,4110.5,2.43278592]
[1761668838436,0.4661,4111.4,4111.1,2.174]
[1761668838641,0.4661,4111.4,4110.5,1.5552]
[1761668838851,0.2217,4110.6,4110.3,1.960704]
[1761668839162,0.6755,4110.6,4110.5,1.5552]
[1761668839865,0.6755,4110.6,4107.1,0.01]
[1761668839866,0.6755,4110.6,4109.3,14.31566639]
[1761668840064,0.4538,4110.5,4109.9,2.43309578]
[1761668840263,0.4538,4110.5,4110.2,2.43296983]
[1761668840436,0.4538,4110.5,4110.0,2.174]
[1761668840638,0.4538,4110.5,4110.0,4.60707734]
[1761668840843,0.4538,4110.5,4110.0,2.174]
[1761668841849,0.453,4110.5,4110.0,2.174]
[1761668842045,0.453,4110.5,4110.0,4.60708215]
[1761668842339,0.453,4110.5,4110.1,2.43301856]
[1761668842542,0.453,4110.5,4110.3,2.43291243]
[1761668842740,0.453,4110.5,4110.4,2.174]
[1761668843718,2.88579621,4110.5,4109.1,0.01]
[1761668844028,2.74360287,4110.4,4109.2,3.15252321]
[1761668844156,2.43302508,4110.2,4109.3,3.98869441]
[1761668844360,2.43314153,4110.0,4109.2,0.719]
[1761668844664,0.4538,4110.1,4109.2,0.719]
[1761668844861,0.4408,4110.3,4109.3,1.5552]
[1761668845083,2.43298477,4110.2,4109.3,2.43350008]
[1761668845256,2.43298477,4110.2,4109.2,0.719]
[1761668845257,0.4408,4110.1,4109.2,0.719]
[1761668845456,0.4408,4110.1,4109.7,2.43325963]
[1761668845661,0.4408,4110.1,4109.8,2.175]
[1761668846295,0.4561,4110.1,4110.0,2.43309002]
[1761668846491,0.4538,4110.5,4110.1,2.43303082]
[1761668846787,0.4538,4110.5,4110.2,4.60795936]
[1761668847189,0.4538,4110.5,4110.3,2.43289728]
[1761668847491,0.4538,4110.5,4110.4,2.43285325]
[1761668849179,0.2217,4110.6,4110.2,2.175]
[1761668849379,0.2217,4110.6,4110.2,4.60796085]
[1761668849580,0.6755,4110.6,4110.2,4.60796085]
[1761668849774,0.6755,4110.6,4110.2,2.175]
[1761668849980,0.6755,4110.6,4110.4,2.43284951]
[1761668850167,0.4538,4110.5,4110.4,2.43284951]
[1761668850388,0.4538,4110.5,4110.3,2.43290815]
[1761668850902,0.4538,4110.5,4110.4,2.43285325]
[1761668853017,0.4538,4110.5,4110.3,2.43290163]
[1761668853300,0.4538,4110.5,4110.2,2.175]
[1761668853672,0.4538,4110.5,4110.3,2.43290702]
[1761668853866,0.4538,4110.5,4110.2,2.175]
[1761668854273,0.4538,4110.5,4110.4,2.43285325]
[1761668855307,0.2227,4110.6,4110.5,2.43279406]
[1761668855465,0.2227,4110.6,4110.5,4.60679406]
[1761668855668,0.001,4110.6,4110.5,5.31076311]
[1761668855971,0.001,4110.6,4110.5,5.43236311]
[1761668858820,0.4324,4110.6,4110.5,4.72739406]
[1761668859129,0.4324,4110.6,4110.5,2.173]
[1761668859318,0.4324,4110.6,4110.5,4.60579406]
[1761668859533,0.4324,4110.6,4110.1,0.002]
[1761668859534,0.001,4110.6,4110.1,0.002]
[1761668859721,0.001,4110.6,4110.5,2.43279406]
[1761668860023,0.001,4110.6,4110.5,5.61022755]
[1761668860224,0.4324,4110.6,4110.5,4.60679406]
[1761668862326,0.001,4110.6,4110.5,4.60679406]
[1761668862540,0.4324,4110.6,4110.5,4.60679406]
[1761668863819,0.4324,4110.6,4110.1,2.43502179]
[1761668864132,0.4324,4110.6,4110.5,2.43279406]
[1761668865840,0.001,4110.6,4110.5,2.43279406]
[1761668866242,0.0002,4110.6,4110.5,2.43279406]
[1761668866543,0.4316,4110.6,4110.5,2.43279406]
[1761668868450,0.0002,4110.6,4110.5,2.43279406]
[1761668869244,0.4316,4110.6,4110.5,2.43279406]
[1761668869559,0.4316,4110.6,4110.4,2.172]
[1761668869848,0.4316,4110.6,4110.5,2.43279406]
[1761668870628,0.0002,4110.6,4110.5,2.43279406]
[1761668871233,0.4316,4110.6,4110.4,2.172]
[1761668871448,0.5532,4110.6,4110.4,2.172]
[1761668871647,0.5532,4110.6,4110.5,2.43279406]
[1761668872348,0.1218,4110.6,4110.5,2.43279406]
[1761668872941,0.5532,4110.6,4110.5,2.43279406]
[1761668873749,0.0002,4110.6,4110.5,2.43279406]
[1761668874859,0.01,4111.4,4111.0,1.960704]
[1761668875163,0.01,4111.4,4111.3,4.55602467]
[1761668875932,0.01,4111.4,4111.3,4.99712467]
[1761668876476,0.01,4111.4,4111.3,6.32452067]
[1761668876642,0.01,4111.4,4111.3,6.16052067]
[1761668877058,0.4414,4111.4,4111.3,2.173]
[1761668877231,0.01,4111.4,4111.3,4.60532067]
[1761668877763,0.4414,4111.4,4111.3,4.60532067]
[1761668878265,0.4414,4111.4,4111.3,2.173]
[1761668878436,0.4414,4111.4,4111.3,4.60532067]
[1761668879256,0.4414,4111.4,4111.3,2.173]
[1761668879661,0.4414,4111.4,4111.3,4.60532067]
[1761668879837,0.01,4111.4,4111.3,4.60532067]
[1761668880264,0.01,4111.4,4111.3,5.30909602]
[1761668880471,0.01,4111.4,4111.3,7.71090002]
[1761668880885,0.01,4111.4,4111.3,6.86429602]
[1761668882170,0.01,4111.4,4111.3,7.30539602]
[1761668882569,0.01,4111.4,4111.3,6.86429602]
[1761668884775,0.01,4111.4,4111.3,6.98589602]
[1761668884953,0.01,4111.4,4111.3,4.81289602]
[1761668885160,0.01,4111.4,4111.3,6.98489602]
[1761668885769,0.4537,4111.4,4111.3,3.98752067]
[1761668885969,0.01,4111.4,4111.3,6.15952067]
[1761668888499,1e-08,4111.4,4111.3,7.15602467]
[1761668889702,0.05,4111.9,4111.6,0.405504]
[1761668889907,0.01,4112.4,4111.9,3.98716575]
[1761668890115,0.01,4112.4,4112.3,17.12673285]
[1761668890407,0.01,4112.4,4112.3,19.29873285]
[1761668890768,0.4559,4112.4,4112.0,2.3565453]
[1761668890998,0.4559,4112.4,4112.2,2.43178171]
[1761668891187,0.0092,4112.4,4112.3,2.4317292]
[1761668891500,0.0092,4112.4,4112.3,4.7667292]
[1761668892872,0.0092,4112.4,4112.3,5.2361292]
[1761668893199,0.0092,4112.4,4112.3,6.7913292]
[1761668893382,0.0092,4112.4,4112.3,9.1478745]
[1761668893988,0.0092,4112.4,4112.3,8.6784745]
[1761668894307,0.0092,4112.4,4112.3,9.1478745]
[1761668894821,0.0092,4112.4,4112.3,9.5533785]
[1761668895187,0.01,4113.4,4113.3,2.43113801]
[1761668895513,0.01,4114.4,4113.3,18.69225752]
[1761668895684,0.01,4114.4,4114.3,2.43054711]
[1761668895902,0.4785,4114.4,4114.3,2.177]
[1761668896302,0.4785,4114.4,4114.3,2.178]
[1761668897022,0.01,4114.4,4114.3,4.60854711]
[1761668897210,0.4785,4114.4,4114.3,4.60854711]
[1761668897612,0.01,4114.4,4114.3,4.60854711]
[1761668899194,0.01,4114.4,4114.3,5.31246806]
[1761668900007,0.01,4114.4,4114.3,2.178]
[1761668900243,0.4785,4114.4,4114.2,0.1208]
[1761668900425,0.4785,4114.4,4114.3,2.179]
[1761668901311,0.01,4114.4,4114.3,4.60954711]
[1761668902306,0.01,4114.4,4114.3,4.63385258]
[1761668902617,0.01,4114.4,4114.3,4.60954711]
[1761668903302,0.05,4114.9,4114.8,0.405504]
[1761668903509,0.05,4114.9,4114.8,19.55535942]
[1761668903733,0.2252,4115.9,4115.3,2.4299565]
[1761668903935,0.2252,4115.9,4115.3,6.1691565]
[1761668904139,0.2252,4115.9,4115.3,6.2899565]
[1761668904337,0.2173,4115.9,4115.3,8.89651676]
[1761668904939,0.5387033,4115.8,4115.3,8.49101276]
[1761668905121,0.5387033,4115.8,4115.3,6.2899565]
[1761668906044,2.42901378,4116.9,4115.3,6.2899565]
[1761668906045,0.05,4117.9,4115.9,1.5552]
[1761668906207,0.05,4117.9,4117.3,19.3068111]